bitfinex/quotes_SOLUSD_20241016
["timestamp","ask_amount","ask_price","bid_price","bid_amount"]
[1729108702593,6.4676,154.62,154.54,20.0]
[1729108702887,12.04937827,154.61,154.54,20.0]
[1729108703087,12.04937827,154.6,154.54,20.0]
[1729108703292,4.63437626,154.59,154.54,20.0]
[1729108703482,6.4676,154.62,154.54,20.0]
[1729108703785,12.04922506,154.61,154.54,20.0]
[1729108703985,12.04922506,154.6,154.54,20.0]
[1729108704288,4.63431733,154.59,154.54,20.0]
[1729108704498,6.4676,154.62,154.54,20.0]
[1729108704790,12.04881354,154.61,154.54,20.0]
[1729108704966,12.04881354,154.6,154.54,20.0]
[1729108705167,4.63415905,154.59,154.53,30.076234]
[1729108705364,6.4676,154.62,154.53,30.076234]
[1729108705563,12.04935416,154.61,154.53,30.076234]
[1729108705788,12.04935416,154.6,154.53,30.076234]
[1729108705987,4.63436698,154.59,154.53,30.076234]
[1729108706193,6.4676,154.62,154.53,30.076234]
[1729108706374,12.04872976,154.61,154.53,30.076234]
[1729108706575,12.04872976,154.6,154.53,30.076234]
[1729108706775,4.63412683,154.59,154.53,30.076234]
[1729108706977,6.4686,154.6,154.53,6.1239]
[1729108707387,11.10252783,154.59,154.53,6.1239]
[1729108707587,11.10292783,154.58,154.5,21.84043466]
[1729108707773,4.63372783,154.57,154.5,20.0]
[1729108708478,11.10392783,154.56,154.49,22.3183]
[1729108708791,4.63372783,154.55,154.49,22.3183]
[1729108708975,6.4702,154.56,154.49,22.3183]
[1729108709178,4.63277562,154.55,154.49,22.3183]
[1729108709399,6.4702,154.56,154.49,22.3183]
[1729108709606,4.63063028,154.55,154.49,22.3183]
[1729108709889,6.4702,154.56,154.49,22.3183]
[1729108710104,4.6306661,154.55,154.49,22.3183]
[1729108710311,6.4702,154.56,154.49,22.3183]
[1729108710471,4.6284837,154.55,154.49,22.3183]
[1729108710671,6.4702,154.56,154.49,22.3183]
[1729108711081,4.62843944,154.55,154.49,22.3183]
[1729108711269,6.4702,154.56,154.49,22.3183]
[1729108711471,4.62662757,154.55,154.49,22.3183]
[1729108711675,6.4702,154.56,154.49,22.3183]
[1729108711876,4.62662657,154.55,154.49,22.3183]
[1729108712087,6.4702,154.56,154.49,22.3183]
[1729108713395,15.5006,154.59,154.5,20.0]
[1729108713396,21.9696,154.59,154.5,20.0]
[1729108713600,4.62417283,154.58,154.5,20.0]
[1729108713898,4.62417283,154.57,154.5,20.0]
[1729108714085,21.9696,154.59,154.5,20.0]
[1729108714285,4.62383541,154.58,154.5,20.0]
[1729108714490,13.22570839,154.62,154.51,23.776884]
[1729108714687,12.02122702,154.61,154.51,31.741518]
[1729108714995,6.4678,154.62,154.51,31.741518]
[1729108715214,15.1351,154.63,154.51,31.741518]
[1729108715215,6.4686,154.6,154.51,7.964634]
[1729108715377,4.62349704,154.59,154.51,7.964634]
[1729108715575,6.4687,154.59,154.51,7.964634]
[1729108715787,4.6235761,154.58,154.51,7.964634]
[1729108715989,6.4687,154.59,154.51,7.964634]
[1729108716193,4.62357448,154.58,154.51,7.964634]
[1729108716389,6.4687,154.59,154.51,7.964634]
[1729108717129,4.62327695,154.58,154.51,7.964634]
[1729108717402,6.4687,154.59,154.51,7.964634]
[1729108717576,4.62291642,154.58,154.51,7.964634]
[1729108717780,6.4687,154.59,154.51,7.964634]
[1729108720787,31.3031,154.63,154.51,7.964634]
[1729108721107,6.4684,154.6,154.51,7.964634]
[1729108721403,4.62222701,154.59,154.51,7.964634]
[1729108721986,4.62222701,154.59,154.49,24.13383957]
[1729108721987,6.4692,154.58,154.49,22.3183]
[1729108724505,6.4692,154.58,154.49,30.282934]
[1729108727726,6.4688,154.59,154.5,27.964634]
[1729108727892,4.62192309,154.58,154.5,27.964634]
[1729108728097,6.4688,154.59,154.5,27.964634]
[1729108728288,4.62206786,154.58,154.5,27.964634]
[1729108728495,20.1,154.62,154.5,27.964634]
[1729108728690,6.4696,154.57,154.5,27.964634]
[1729108728889,6.4693,154.58,154.5,27.964634]
[1729108729292,6.47,154.56,154.5,7.964634]
[1729108729592,6.47,154.56,154.49,22.3183]
[1729108740918,16.2547,154.58,154.47,21.79261944]
[1729108741106,16.2547,154.58,154.46,7.964634]
[1729108741107,6.4709,154.54,154.46,7.964634]
[1729108741305,23.776884,154.56,154.46,7.964634]
[1729108741625,6.4728,154.5,154.41,15.1268]
[1729108741815,6.4731,154.49,154.41,15.1268]
[1729108742902,16.1785,154.53,154.42,20.0]
[1729108742903,6.4726,154.5,154.42,20.0]
[1729108744000,6.4721,154.51,154.42,27.964634]
[1729108745006,0.057,154.5,154.42,27.964634]
[1729108745207,0.4023,154.5,154.42,27.964634]
[1729108745419,0.4023,154.5,154.43,7.964634]
[1729108749639,6.4729,154.49,154.42,20.0]
[1729108750210,6.4735,154.48,154.41,15.1268]
[1729108750929,0.4023,154.5,154.41,15.1268]
[1729108751310,6.4733,154.48,154.41,15.1268]
[1729108751612,16.3493,154.49,154.39,7.964634]
[1729108751816,6.4738,154.47,154.39,7.964634]
[1729108752641,6.4744,154.46,154.39,7.964634]
[1729108753332,6.4748,154.45,154.39,7.964634]
[1729108753523,6.4748,154.45,154.37,16.1532]
[1729108754422,30.0,154.44,154.37,16.1532]
[1729108756118,6.4748,154.45,154.37,16.1532]
[1729108756326,9.40456799,154.48,154.38,20.0]
[1729108756526,22.8225,154.49,154.38,27.964634]
[1729108757037,16.3493,154.49,154.38,27.964634]
[1729108757239,6.4734,154.48,154.38,27.964634]
[1729108757820,16.3493,154.49,154.38,27.964634]
[1729108757821,22.8225,154.49,154.38,27.964634]
[1729108758036,16.3493,154.49,154.4,20.0]
[1729108758336,22.8223,154.49,154.4,20.0]
[1729108759535,16.3493,154.49,154.4,20.0]
[1729108762037,22.8223,154.49,154.4,20.0]
[1729108764239,16.3493,154.49,154.4,20.0]
[1729108764726,22.8222,154.49,154.4,20.0]
[1729108766429,6.4739,154.47,154.4,20.0]
[1729108766636,6.4739,154.47,154.38,7.964634]
[1729108769554,6.4734,154.48,154.38,7.964634]
[1729108770259,22.8792,154.49,154.39,20.0]
[1729108770825,22.8792,154.49,154.38,20.0]
[1729108771044,22.8792,154.49,154.4,20.0]
[1729108771443,6.4735,154.48,154.4,20.0]
[1729108773248,22.8793,154.49,154.4,20.0]
[1729108773755,16.4063,154.49,154.4,20.0]
[1729108774753,16.3493,154.49,154.4,20.0]
[1729108775273,22.8223,154.49,154.4,20.0]
[1729108775553,6.4736,154.48,154.4,20.0]
[1729108776858,6.8189,154.48,154.4,20.0]
[1729108777060,0.3453,154.48,154.4,20.0]
[1729108778433,0.3453,154.48,154.41,23.776884]
[1729108782953,0.3453,154.48,154.42,6.14]
[1729108786877,0.4023,154.48,154.42,6.14]
[1729108789164,0.4023,154.48,154.42,22.7621]
[1729108793062,0.4023,154.48,154.42,6.14]
[1729108793364,6.876,154.48,154.42,6.14]
[1729108793540,0.4023,154.48,154.42,6.14]
[1729108794969,0.4023,154.48,154.39,20.0]
[1729108794970,6.474,154.47,154.39,20.0]
[1729108795158,4.62981217,154.46,154.39,20.0]
[1729108795359,6.8757,154.48,154.39,20.0]
[1729108795558,4.63055195,154.47,154.39,20.0]
[1729108795750,4.63055195,154.46,154.39,20.0]
[1729108796061,6.8757,154.48,154.39,20.0]
[1729108796247,4.63110579,154.47,154.39,20.0]
[1729108796449,4.63110579,154.46,154.39,20.0]
[1729108796658,6.8757,154.48,154.39,20.0]
[1729108796866,4.63111699,154.47,154.39,20.0]
[1729108797064,11.10541699,154.46,154.39,20.0]
[1729108797262,11.10571699,154.45,154.39,20.0]
[1729108797466,6.4746,154.45,154.39,20.0]
[1729108797770,6.4738,154.47,154.39,20.0]
[1729108797975,4.63130951,154.46,154.39,20.0]
[1729108798163,4.63130951,154.45,154.39,20.0]
[1729108798461,6.4738,154.47,154.39,20.0]
[1729108798668,11.10523177,154.46,154.39,20.0]
[1729108798870,4.63083177,154.45,154.39,20.0]
[1729108799855,4.63083177,154.45,154.38,29.81137663]
[1729108800176,4.63164473,154.44,154.35,43.776884]
[1729108800342,6.4747,154.45,154.35,43.776884]
[1729108800545,4.63220184,154.44,154.35,43.776884]
[1729108800770,4.63220184,154.44,154.35,51.74216063]
[1729108801155,4.63220184,154.44,154.35,63.35783342]
[1729108801554,4.63220184,154.44,154.35,51.74216063]
[1729108801763,4.63220184,154.43,154.35,51.74216063]
[1729108802075,6.4746,154.45,154.35,51.74216063]
[1729108802271,4.63166267,154.44,154.35,51.74216063]
[1729108802455,25.07819419,154.48,154.37,43.776884]
[1729108802659,7.41053937,154.47,154.37,51.74216063]
[1729108802968,12.04212647,154.46,154.37,51.74216063]
[1729108803159,4.6315871,154.45,154.37,27.96527663]
[1729108803355,4.6315871,154.44,154.37,27.96527663]
[1729108803570,6.4742,154.46,154.37,27.96527663]
[1729108803776,4.63264296,154.45,154.41,20.0]
[1729108803979,6.76178509,154.5,154.43,20.0]
[1729108804273,12.04420864,154.49,154.43,27.96527663]
[1729108804475,6.474,154.47,154.4,43.776884]
[1729108804676,16.5882,154.52,154.4,43.776884]
[1729108804859,6.4725,154.5,154.4,51.74216063]
[1729108805173,12.04411861,154.49,154.4,51.74216063]
[1729108805377,4.63235331,154.48,154.4,51.74216063]
[1729108805674,4.63235331,154.47,154.4,51.74216063]
[1729108805858,6.4725,154.5,154.4,51.74216063]
[1729108806059,12.04486494,154.49,154.4,51.74216063]
[1729108806256,4.63264036,154.48,154.4,51.74216063]
[1729108806566,6.4721,154.51,154.4,51.74216063]
[1729108806768,16.5882,154.52,154.4,51.74216063]
[1729108806769,12.10151834,154.5,154.4,51.74216063]
[1729108806971,4.63250705,154.49,154.4,51.74216063]
[1729108808485,18.51711316,154.49,154.4,51.74216063]
[1729108808671,4.63250705,154.48,154.4,51.74216063]
[1729108808873,4.63250705,154.47,154.4,51.74216063]
[1729108809076,6.4732,154.49,154.4,51.74216063]
[1729108809256,4.63211386,154.48,154.4,51.74216063]
[1729108809453,6.4738,154.47,154.4,7.96527663]
[1729108809655,6.4734,154.48,154.39,6.3691]
[1729108809878,4.6316982,154.47,154.39,6.3691]
[1729108810068,6.4734,154.48,154.39,6.3691]
[1729108810378,4.62881891,154.47,154.39,6.3691]
[1729108810679,6.4739,154.47,154.39,6.3691]
[1729108811059,6.4733,154.48,154.39,6.3691]
[1729108811463,6.473,154.49,154.4,20.0]
[1729108811672,4.62779667,154.48,154.4,20.0]
[1729108811977,6.473,154.49,154.4,20.0]
[1729108812170,4.62806188,154.48,154.4,20.0]
[1729108812483,6.5296,154.5,154.4,20.0]
[1729108812663,12.03352002,154.49,154.4,20.0]
[1729108812864,4.62827693,154.48,154.4,20.0]
[1729108813165,6.4732,154.49,154.4,20.0]
[1729108814192,4.62873247,154.48,154.4,20.0]
[1729108814372,6.4834,154.51,154.4,20.0]
[1729108814577,18.50712372,154.5,154.4,20.0]
[1729108814762,12.03462372,154.49,154.4,20.0]
[1729108815085,4.62870143,154.48,154.4,20.0]
[1729108815389,6.4736,154.48,154.4,20.0]
[1729108815771,6.4834,154.51,154.4,20.0]
[1729108815962,6.8182,154.49,154.4,20.0]
[1729108816159,4.63073372,154.48,154.4,20.0]
[1729108817667,6.8182,154.49,154.4,20.0]
[1729108817861,4.63056275,154.48,154.4,20.0]
[1729108818184,6.8182,154.49,154.4,20.0]
[1729108818372,4.63056645,154.48,154.4,20.0]
[1729108818680,15.9914,154.48,154.36,7.96527663]
[1729108818888,15.9914,154.48,154.35,6.6551]
[1729108818889,23.776884,154.45,154.35,6.6551]
[1729108819062,6.4762,154.41,154.35,6.6551]
[1729108819268,6.4755,154.43,154.35,6.6551]
[1729108819878,4.62954333,154.42,154.35,6.6551]
[1729108820189,6.4755,154.43,154.35,6.6551]
[1729108820684,6.4761,154.42,154.35,6.6551]
[1729108820988,23.776884,154.45,154.35,6.6551]
[1729108821170,6.4757,154.43,154.35,6.6551]
[1729108824163,6.4749,154.45,154.36,20.0]
[1729108824379,4.62456417,154.44,154.36,20.0]
[1729108824559,6.4749,154.45,154.36,20.0]
[1729108824777,4.62454103,154.44,154.36,20.0]
[1729108824971,6.4749,154.45,154.36,20.0]
[1729108825175,4.62455047,154.44,154.36,20.0]
[1729108825482,6.4749,154.45,154.36,20.0]
[1729108825677,4.62689047,154.44,154.36,20.0]
[1729108825880,6.4749,154.45,154.36,20.0]
[1729108826089,4.62702473,154.44,154.36,20.0]
[1729108826388,12.7366,154.46,154.36,20.0]
[1729108826572,4.62656546,154.45,154.36,20.0]
[1729108826884,6.4742,154.46,154.36,20.0]
[1729108827089,0.057,154.44,154.36,20.0]
[1729108827462,0.057,154.44,154.38,20.0]
[1729108828178,0.057,154.44,154.37,20.0]
[1729108828382,0.057,154.44,154.35,6.6551]
[1729108828777,6.4756,154.43,154.35,6.6551]
[1729108835675,6.4751,154.44,154.35,6.6551]
[1729108835873,6.4751,154.44,154.36,20.0]
[1729108840802,6.8204,154.44,154.36,20.0]
[1729108841373,6.8204,154.44,154.35,6.6551]
[1729108841374,15.8042,154.43,154.34,15.4112]
[1729108841580,15.8042,154.43,154.35,20.0]
[1729108841789,31.9929,154.43,154.32,20.0]
[1729108841984,6.4761,154.42,154.32,20.0]
[1729108842191,15.8042,154.43,154.32,20.0]
[1729108842874,6.4765,154.41,154.32,20.0]
[1729108843477,30.0,154.4,154.32,20.0]
[1729108844187,30.0,154.4,154.34,20.0]
[1729108844403,0.3453,154.44,154.36,20.0]
[1729108844590,0.3453,154.44,154.36,26.5837]
[1729108844905,23.0944,154.47,154.36,34.54897663]
[1729108845117,4.62085857,154.46,154.36,34.54897663]
[1729108845311,16.6204,154.47,154.38,20.0]
[1729108845603,6.4733,154.48,154.4,20.0]
[1729108845819,4.62095078,154.47,154.4,20.0]
[1729108845984,6.4733,154.48,154.4,20.0]
[1729108846690,10.10281195,154.49,154.4,20.0]
[1729108846691,16.57581195,154.49,154.4,20.0]
[1729108847313,10.10281195,154.49,154.41,23.776884]
[1729108847483,10.10281195,154.49,154.41,30.378284]
[1729108849005,10.10281195,154.49,154.42,20.0]
[1729108849395,10.15981195,154.49,154.42,20.0]
[1729108851917,10.15981195,154.49,154.43,23.776884]
[1729108852138,0.057,154.49,154.44,35.6302]
[1729108852417,0.057,154.49,154.45,35.39255679]
[1729108852991,0.057,154.49,154.46,20.0]
[1729108853208,0.057,154.49,154.47,6.5207]
[1729108853392,0.057,154.49,154.48,20.0]
[1729108859221,0.4023,154.49,154.48,20.0]
[1729108860017,0.4023,154.49,154.45,35.39255679]
[1729108860018,0.4023,154.49,154.43,14.42237663]
[1729108860401,0.4023,154.49,154.4,28.07207279]
[1729108860700,6.8754,154.49,154.4,16.4564]
[1729108862328,6.8754,154.49,154.41,20.0]
[1729108863219,6.4737,154.47,154.41,20.0]
[1729108863522,6.4737,154.47,154.38,14.42237663]
[1729108864440,15.7867,154.46,154.38,14.42237663]
[1729108864729,22.2608,154.46,154.38,14.42237663]
[1729108864934,6.4746,154.45,154.38,7.96527663]
[1729108865102,6.4746,154.45,154.36,16.3364]
[1729108865609,6.4745,154.45,154.35,23.776884]
[1729108866320,22.2609,154.46,154.36,20.0]
[1729108866506,15.7867,154.46,154.36,31.61567279]
[1729108866825,15.7867,154.46,154.36,54.83834942]
[1729108867306,22.2612,154.46,154.36,43.22267663]
[1729108870225,6.4747,154.45,154.36,35.2574]
[1729108870925,6.4754,154.43,154.35,20.0]
[1729108871132,15.8437,154.46,154.35,20.0]
[1729108871334,23.776884,154.45,154.34,6.5762]
[1729108871531,6.4767,154.4,154.3,6.4784]
[1729108871704,16.1878,154.44,154.3,14.44367663]
[1729108871907,6.4759,154.42,154.3,14.44367663]
[1729108872211,6.4759,154.42,154.31,7.96527663]
[1729108872530,23.776884,154.43,154.31,7.96527663]
[1729108872711,6.4764,154.41,154.32,20.0]
[1729108873911,6.4764,154.41,154.33,20.0]
[1729108878732,6.8217,154.41,154.33,20.0]
[1729108881931,6.8217,154.41,154.33,31.61567279]
[1729108881932,0.3453,154.41,154.33,31.61567279]
[1729108884133,6.8219,154.41,154.33,20.0]
[1729108884312,0.3453,154.41,154.33,20.0]
[1729108886220,0.3453,154.41,154.35,20.0]
[1729108887225,0.3453,154.41,154.35,31.61567279]
[1729108889820,0.3453,154.41,154.38,20.0]
[1729108890213,0.3453,154.41,154.39,0.354609]
[1729108890825,0.3453,154.41,154.4,31.61567279]
[1729108893031,0.4023,154.41,154.4,31.61567279]
[1729108893443,16.2484,154.5,154.43,20.0]
[1729108893827,10.10366551,154.52,154.43,20.0]
[1729108894934,10.10366551,154.52,154.45,20.0]
[1729108903454,10.10366551,154.52,154.47,20.0]
[1729108904356,10.10366551,154.52,154.45,20.0]
[1729108905848,6.4699,154.57,154.47,20.0]
[1729108914846,16.495,154.58,154.49,11.61567279]
[1729108915340,16.495,154.58,154.5,20.0]
[1729108915541,19.69506748,154.6,154.5,20.0]
[1729108915542,13.22786748,154.6,154.51,11.61567279]
[1729108916048,6.4684,154.6,154.51,11.61567279]
[1729108916364,15.7131,154.62,154.51,11.61567279]
[1729108916654,6.4687,154.59,154.51,11.61567279]
[1729108918360,15.7131,154.62,154.51,11.61567279]
[1729108918361,6.4683,154.6,154.51,11.61567279]
[1729108923071,6.4683,154.6,154.49,13.44981053]
[1729108923257,6.4683,154.6,154.5,20.0]
[1729108924174,6.4687,154.59,154.5,20.0]
[1729108924546,21.5461,154.6,154.48,20.0]
[1729108924756,23.776884,154.57,154.43,20.01894784]
[1729108924984,23.776884,154.57,154.43,18.23927279]
[1729108924985,39.951684,154.57,154.43,18.23927279]
[1729108925179,6.4713,154.53,154.43,26.20454942]
[1729108925976,23.776884,154.57,154.44,23.776884]
[1729108926276,6.4704,154.55,154.45,11.61567279]
[1729108926474,6.4704,154.55,154.46,20.0]
[1729108927080,6.4704,154.55,154.47,24.4788085]
[1729108927371,6.4704,154.55,154.46,20.0]
[1729108929770,22.21063576,154.58,154.46,20.0]
[1729108929972,6.47,154.56,154.46,20.0]
[1729108933851,22.21063576,154.58,154.49,35.39255679]
[1729108934170,22.21063576,154.58,154.5,20.0]
[1729108934171,21.9194,154.58,154.5,20.0]
[1729108934480,15.4503,154.58,154.5,20.0]
[1729108936987,4.61281488,154.57,154.5,20.0]
[1729108937287,4.61281488,154.57,154.49,41.53625679]
[1729108937288,15.4503,154.58,154.48,20.0]
[1729108937454,4.61457182,154.57,154.48,20.0]
[1729108938673,4.61641103,154.56,154.48,20.0]
[1729108938858,21.9197,154.58,154.48,20.0]
[1729108939058,12.00269712,154.57,154.48,20.0]
[1729108939260,4.61642197,154.56,154.48,20.0]
[1729108939463,4.61642197,154.55,154.48,20.0]
[1729108939776,21.9197,154.58,154.48,20.0]
[1729108939966,12.00971864,154.57,154.48,20.0]
[1729108940274,4.61912255,154.56,154.48,20.0]
[1729108940482,4.61912255,154.55,154.48,20.0]
[1729108940656,21.9197,154.58,154.48,20.0]
[1729108940853,12.01024484,154.57,154.48,20.0]
[1729108941054,6.472,154.52,154.45,6.6249]
[1729108941272,6.4711,154.54,154.45,6.6249]
[1729108941477,4.61906693,154.53,154.45,6.6249]
[1729108941677,15.4503,154.58,154.45,6.6249]
[1729108941678,6.4703,154.56,154.45,6.6249]
[1729108941855,12.00978761,154.55,154.45,6.6249]
[1729108942055,4.61914908,154.54,154.47,11.61567279]
[1729108942261,6.4703,154.56,154.48,20.0]
[1729108942782,12.01006037,154.55,154.48,20.0]
[1729108942999,4.61928747,154.54,154.48,20.0]
[1729108943196,6.4703,154.56,154.48,20.0]
[1729108943379,4.61931513,154.55,154.48,20.0]
[1729108943553,4.61931513,154.54,154.48,20.0]
[1729108943754,6.4696,154.57,154.48,20.0]
[1729108943952,12.00703403,154.56,154.48,20.0]
[1729108944394,12.00703403,154.56,154.5,20.0]
[1729108944395,4.61809001,154.56,154.5,20.0]
[1729108944557,4.61809001,154.55,154.5,20.0]
[1729108944758,15.4503,154.58,154.5,20.0]
[1729108944966,12.00619623,154.57,154.5,20.0]
[1729108945163,4.61776778,154.56,154.5,20.0]
[1729108945367,4.61776778,154.55,154.5,20.0]
[1729108945580,15.4503,154.58,154.5,20.0]
[1729108945780,12.00599762,154.57,154.5,20.0]
[1729108946082,15.4503,154.58,154.5,20.0]
[1729108946083,4.61769139,154.56,154.5,20.0]
[1729108946458,15.4503,154.58,154.5,20.0]
[1729108946666,12.00795653,154.57,154.5,20.0]
[1729108946865,4.61844482,154.56,154.51,0.354609]
[1729108947167,15.4503,154.58,154.51,0.354609]
[1729108947362,4.61823041,154.57,154.51,0.354609]
[1729108947582,6.4676,154.62,154.53,11.61567279]
[1729108947774,12.00711733,154.61,154.53,11.61567279]
[1729108948081,12.00711733,154.6,154.53,11.61567279]
[1729108948259,4.61812205,154.59,154.53,11.61567279]
[1729108948559,6.4675,154.62,154.53,11.61567279]
[1729108948761,12.00266288,154.61,154.53,11.61567279]
[1729108948957,4.6164088,154.6,154.53,11.61567279]
[1729108949182,4.6164088,154.59,154.53,11.61567279]
[1729108949381,6.4675,154.62,154.53,11.61567279]
[1729108949580,11.99915863,154.61,154.53,11.61567279]
[1729108949888,4.61506101,154.6,154.53,11.61567279]
[1729108950076,7.38410767,154.61,154.53,11.61567279]
[1729108950281,4.61507235,154.6,154.53,11.61567279]
[1729108950463,6.4675,154.62,154.53,11.61567279]
[1729108950665,11.99643355,154.61,154.53,11.61567279]
[1729108950967,4.6140129,154.6,154.53,11.61567279]
[1729108951164,6.4675,154.62,154.53,11.61567279]
[1729108951490,11.9941952,154.61,154.53,11.61567279]
[1729108951667,4.613152,154.6,154.53,11.61567279]
[1729108951869,6.4675,154.62,154.53,11.61567279]
[1729108952177,11.99410815,154.61,154.53,11.61567279]
[1729108952371,4.61309636,154.6,154.52,44.4788085]
[1729108952573,6.4675,154.62,154.52,20.0]
[1729108952885,11.99235966,154.61,154.52,20.0]
[1729108953081,4.61244602,154.6,154.52,20.0]
[1729108953283,6.4675,154.62,154.53,24.4788085]
[1729108953481,4.61167882,154.61,154.52,20.0]
[1729108953792,4.61167882,154.6,154.52,20.0]
[1729108953971,6.4675,154.62,154.52,20.0]
[1729108954287,4.61177946,154.61,154.52,20.0]
[1729108954473,6.4675,154.62,154.52,20.0]
[1729108954669,4.61201745,154.61,154.52,20.0]
[1729108954871,6.4675,154.62,154.53,24.4788085]
[1729108955076,4.61425705,154.61,154.52,20.0]
[1729108955288,6.4675,154.62,154.52,20.0]
[1729108955485,4.61481438,154.61,154.52,20.0]
[1729108955694,6.4675,154.62,154.52,20.0]
[1729108955891,4.61476167,154.61,154.52,20.0]
[1729108956185,6.4675,154.62,154.52,20.0]
[1729108956393,4.61442518,154.61,154.52,20.0]
[1729108956581,6.4675,154.62,154.52,20.0]
[1729108956891,15.3769,154.63,154.53,36.09448129]
[1729108956892,4.61434108,154.61,154.53,36.09448129]
[1729108957184,15.3769,154.63,154.54,20.0]
[1729108957383,11.99624123,154.62,154.54,20.0]
[1729108957593,4.61393893,154.61,154.54,20.0]
[1729108957787,21.844,154.63,154.54,20.0]
[1729108957985,4.61403053,154.62,154.54,20.0]
[1729108958187,4.61403053,154.61,154.54,20.0]
[1729108958482,6.4681,154.61,154.53,20.0]
[1729108958685,6.4677,154.62,154.53,20.0]
[1729108958884,4.61450072,154.61,154.53,20.0]
[1729108959079,6.4677,154.62,154.53,20.0]
[1729108959279,4.61534704,154.61,154.53,20.0]
[1729108959474,6.4677,154.62,154.53,20.0]
[1729108959794,4.61493113,154.61,154.53,20.0]
[1729108959980,6.4677,154.62,154.53,20.0]
[1729108960168,4.61526754,154.61,154.53,20.0]
[1729108960369,6.4677,154.62,154.53,44.4788085]
[1729108960581,4.61515359,154.61,154.53,20.0]
[1729108960778,6.4677,154.62,154.53,20.0]
[1729108960985,4.61538423,154.61,154.53,20.0]
[1729108961295,6.4677,154.62,154.54,24.4788085]
[1729108961600,4.6150477,154.61,154.54,24.4788085]
[1729108961767,6.4677,154.62,154.54,24.4788085]
[1729108961965,4.61495353,154.61,154.53,20.0]
[1729108962167,6.4677,154.62,154.53,20.0]
[1729108962387,4.61486687,154.61,154.53,44.4788085]
[1729108962595,6.4677,154.62,154.53,20.0]
[1729108962766,4.61462477,154.61,154.53,20.0]
[1729108962969,15.3769,154.63,154.53,24.4788085]
[1729108962970,6.4688,154.59,154.53,24.4788085]
[1729108963171,6.4688,154.59,154.52,20.0]
[1729108963373,6.4684,154.6,154.51,6.419609]
[1729108963578,11.08359697,154.59,154.51,6.419609]
[1729108963893,6.4687,154.59,154.51,6.419609]
[1729108964479,23.776884,154.62,154.51,6.419609]
[1729108964675,6.4684,154.6,154.51,6.419609]
[1729108964872,4.61470542,154.59,154.51,6.419609]
[1729108965294,6.4689,154.59,154.51,6.419609]
[1729108967796,6.4689,154.59,154.52,24.4788085]
[1729108967976,6.4689,154.59,154.51,6.419609]
[1729108971496,30.52677571,154.62,154.51,6.419609]
[1729108971699,18.46786958,154.61,154.52,20.0]
[1729108971887,4.61529599,154.6,154.52,20.0]
[1729108972088,6.4681,154.61,154.52,20.0]
[1729108972400,4.61530169,154.6,154.52,20.0]
[1729108972588,6.4681,154.61,154.52,20.0]
[1729108972902,4.61573221,154.6,154.53,24.4788085]
[1729108973100,6.4681,154.61,154.52,20.0]
[1729108973296,4.61574463,154.6,154.52,20.0]
[1729108973490,6.4681,154.61,154.52,20.0]
[1729108973693,4.61638815,154.6,154.52,20.0]
[1729108973893,6.4681,154.61,154.52,20.0]
[1729108974099,4.61628506,154.6,154.52,20.0]
[1729108974299,4.61628506,154.59,154.52,20.0]
[1729108974509,6.4681,154.61,154.52,20.0]
[1729108974686,4.61716433,154.6,154.52,20.0]
[1729108974885,4.61716433,154.59,154.52,20.0]
[1729108975093,6.4683,154.6,154.52,20.0]
[1729108975287,4.61784272,154.59,154.52,20.0]
[1729108975492,6.4683,154.6,154.52,20.0]
[1729108975692,4.61782021,154.59,154.52,20.0]